bitfinex-derivatives/quotes_BTCF0:USTF0_20250724
["timestamp","ask_amount","ask_price","bid_price","bid_amount"]
[1753380342533,0.95669673,119250.0,119240.0,0.58948]
[1753380342935,0.6014712,119250.0,119240.0,0.58948]
[1753380343135,0.95669673,119250.0,119240.0,0.757124]
[1753380343339,0.6014709,119250.0,119240.0,1.47314953]
[1753380343635,0.311461,119250.0,119240.0,1.47314953]
[1753380343835,0.196371,119250.0,119240.0,1.47314953]
[1753380344227,0.17585989,119250.0,119240.0,1.47314953]
[1753380344639,0.19602965,119250.0,119240.0,1.47314953]
[1753380345030,0.17585989,119250.0,119240.0,1.47314953]
[1753380345432,0.05028,119250.0,119240.0,1.82837506]
[1753380346436,0.05028,119250.0,119240.0,1.47314953]
[1753380347246,0.05028,119250.0,119240.0,2.09497506]
[1753380349845,0.003,119250.0,119240.0,2.09497506]
[1753380350734,0.003,119250.0,119240.0,1.73974953]
[1753380350940,0.003,119250.0,119240.0,2.09497506]
[1753380351451,0.23853,119280.0,119270.0,0.1676022]
[1753380351640,0.25868323,119280.0,119270.0,1.83710773]
[1753380351839,0.3839179,119280.0,119270.0,1.83710773]
[1753380352141,0.4336079,119280.0,119270.0,1.83710773]
[1753380352347,0.601196,119280.0,119270.0,1.83710773]
[1753380352641,0.601196,119280.0,119270.0,1.31428]
[1753380352848,0.4356079,119280.0,119270.0,1.4818822]
[1753380353043,0.4356079,119280.0,119270.0,1.83710773]
[1753380353744,0.4376079,119280.0,119270.0,1.83710773]
[1753380354534,0.4376079,119280.0,119270.0,1.4818822]
[1753380354933,0.4376079,119280.0,119270.0,1.83710773]
[1753380355145,0.41745467,119280.0,119270.0,1.83710773]
[1753380355946,0.41745467,119280.0,119270.0,1.90478645]
[1753380356846,0.05379,119280.0,119270.0,1.90478645]
[1753380358444,0.05279,119280.0,119270.0,1.90478645]
[1753380359743,0.05283,119280.0,119270.0,1.90478645]
[1753380360342,0.29126,119280.0,119270.0,1.90478645]
[1753380361143,0.28926,119280.0,119270.0,1.90478645]
[1753380361345,0.29026,119280.0,119270.0,1.90478645]
[1753380363252,0.05183,119280.0,119270.0,1.90478645]
[1753380366754,0.05183,119280.0,119270.0,1.90422645]
[1753380367755,0.00214,119280.0,119270.0,1.90422645]
[1753380368452,0.00214,119280.0,119270.0,2.25945198]
[1753380368658,0.11624,119300.0,119290.0,0.167574]
[1753380368957,0.11624,119300.0,119290.0,1.83615953]
[1753380368958,0.04969,119300.0,119290.0,1.83615953]
[1753380369752,0.04969,119300.0,119290.0,1.480934]
[1753380369947,0.09272,119300.0,119290.0,1.83615953]
[1753380370151,0.28578,119300.0,119290.0,1.24439953]
[1753380370355,0.45334,119300.0,119290.0,1.83627953]
[1753380370552,0.28678,119300.0,119290.0,1.83627953]
[1753380370752,0.28778,119300.0,119290.0,1.84445722]
[1753380373058,0.05169,119300.0,119290.0,1.84445722]
[1753380374059,0.05173,119300.0,119290.0,1.84445722]
[1753380378571,0.00204,119300.0,119290.0,1.84445722]
[1753380379565,0.04979,119300.0,119290.0,1.84445722]
[1753380379764,0.04979,119300.0,119290.0,2.11105722]
[1753380381669,0.00204,119300.0,119290.0,2.11105722]
[1753380383260,0.04979,119300.0,119290.0,2.11105722]
[1753380383567,0.00204,119300.0,119290.0,2.11105722]
[1753380384361,0.06762,119320.0,119300.0,0.00521]
[1753380384562,0.23529,119330.0,119320.0,0.170742]
[1753380384762,0.23529,119330.0,119320.0,0.88676753]
[1753380385068,0.36153886,119330.0,119320.0,0.88676753]
[1753380386463,0.40928886,119330.0,119320.0,0.88676753]
[1753380386669,0.41028886,119330.0,119320.0,0.88676753]
[1753380386976,0.37161886,119330.0,119320.0,0.88876753]
[1753380387471,0.25140886,119330.0,119320.0,0.88876753]
[1753380387675,0.17599886,119330.0,119320.0,1.24399306]
[1753380387874,0.04975,119330.0,119320.0,0.88876753]
[1753380388068,0.19907,119330.0,119320.0,0.88876753]
[1753380388268,0.28504,119330.0,119320.0,0.88876753]
[1753380389178,0.28404,119330.0,119320.0,0.88876753]
[1753380389374,0.28308,119330.0,119320.0,0.88876753]
[1753380393579,0.14779,119330.0,119320.0,0.88876753]
[1753380394182,0.14779,119330.0,119320.0,1.24399306]
[1753380394782,0.28308,119330.0,119320.0,1.24399306]
[1753380394970,0.28308,119330.0,119320.0,0.88876753]
[1753380398387,0.28308,119330.0,119320.0,1.24399306]
[1753380398891,0.04779,119330.0,119320.0,1.24399306]
[1753380400696,4e-05,119330.0,119320.0,1.24399306]
[1753380401685,4e-05,119330.0,119320.0,1.24499306]
[1753380402195,0.04674,119330.0,119320.0,1.24699306]
[1753380406291,0.27068,119330.0,119320.0,0.88976753]
[1753380406490,0.27068,119330.0,119320.0,1.47884753]
[1753380407200,0.27068,119330.0,119320.0,1.48084753]
[1753380407603,0.10886,119330.0,119320.0,1.125622]
[1753380407899,0.10886,119330.0,119320.0,1.83607306]
[1753380408203,0.04674,119330.0,119320.0,1.83607306]
[1753380409598,0.0467,119340.0,119330.0,0.1727277]
[1753380409803,0.0467,119340.0,119330.0,0.88875323]
[1753380410004,0.17277964,119340.0,119330.0,0.88875323]
[1753380411011,0.23489964,119340.0,119330.0,0.88875323]
[1753380411518,0.17277964,119340.0,119330.0,0.88875323]
[1753380412406,0.23489964,119340.0,119330.0,0.88875323]
[1753380413516,0.17277964,119340.0,119330.0,0.88875323]
[1753380413910,0.17277964,119340.0,119330.0,0.95654876]
[1753380414819,0.39671964,119340.0,119330.0,0.95654876]
[1753380415211,0.39671964,119340.0,119330.0,1.54538876]
[1753380415821,0.39671964,119340.0,119330.0,0.60132323]
[1753380416121,0.39671964,119340.0,119330.0,1.54526876]
[1753380416717,0.39671964,119340.0,119330.0,1.54338876]
[1753380417319,0.56422324,119340.0,119330.0,1.01735553]
[1753380417517,0.39671964,119340.0,119330.0,1.01735553]
[1753380417719,0.39671964,119340.0,119330.0,1.54009866]
[1753380418409,0.39671964,119340.0,119330.0,0.95454866]
[1753380418613,0.39671964,119340.0,119330.0,1.54326866]
[1753380418812,0.39671964,119340.0,119330.0,0.95454866]
[1753380419010,0.39671964,119340.0,119330.0,1.54510866]
[1753380420324,0.39671964,119340.0,119330.0,1.18988313]
[1753380420524,0.39671964,119340.0,119330.0,1.54510866]
[1753380420918,0.39671964,119340.0,119330.0,1.54310866]
[1753380421221,0.39671964,119340.0,119330.0,1.54510866]
[1753380422614,0.28186964,119340.0,119330.0,1.54510866]
[1753380422808,0.17277964,119340.0,119330.0,1.54510866]
[1753380423823,0.23489964,119340.0,119330.0,1.54510866]
[1753380424410,0.17277964,119340.0,119330.0,1.54510866]
[1753380426413,0.17277964,119340.0,119330.0,1.54610866]
[1753380427215,0.17277964,119340.0,119330.0,1.62122334]
[1753380427410,0.17277964,119340.0,119330.0,1.62322334]
[1753380428411,0.17277964,119340.0,119330.0,1.26799781]
[1753380428620,0.39671964,119340.0,119330.0,1.62322334]
[1753380428922,0.39671964,119340.0,119330.0,1.63082334]
[1753380429217,0.39671964,119340.0,119330.0,0.67743781]
[1753380429423,0.39671964,119340.0,119330.0,1.62926334]
[1753380429821,0.39671964,119340.0,119330.0,1.63126334]
[1753380432729,0.39671964,119340.0,119330.0,1.27603781]
[1753380433021,0.39671964,119340.0,119330.0,1.63126334]
[1753380434530,0.17277964,119340.0,119330.0,1.63126334]
[1753380436329,0.17277964,119340.0,119330.0,1.55614866]
[1753380437123,0.12607964,119340.0,119330.0,1.55614866]
[1753380437724,1e-08,119340.0,119330.0,1.55614866]
[1753380438135,0.04688,119370.0,119340.0,0.00521]
[1753380438325,0.27544,119370.0,119360.0,1.24951113]
[1753380438522,0.37544,119370.0,119360.0,1.24751113]
[1753380439122,0.37544,119370.0,119360.0,1.25572045]
[1753380440435,0.37544,119370.0,119360.0,2.51068045]
[1753380442636,0.37544,119370.0,119360.0,2.15545492]
[1753380442838,0.37544,119370.0,119360.0,2.51068045]
[1753380449236,0.37544,119370.0,119360.0,2.15545492]
[1753380449435,0.37544,119370.0,119360.0,2.51068045]
[1753380452341,0.21189,119370.0,119360.0,2.51268045]
[1753380452842,0.25389,119370.0,119360.0,2.51268045]
[1753380453141,0.28987,119370.0,119360.0,2.51268045]
[1753380453741,0.14688,119370.0,119360.0,2.86790598]
[1753380453941,0.14688,119370.0,119360.0,2.51268045]
[1753380454534,0.21189,119370.0,119360.0,2.51268045]
[1753380454735,0.2451,119370.0,119360.0,2.51268045]
[1753380454940,0.37544,119370.0,119360.0,2.51268045]
[1753380458840,0.37544,119370.0,119360.0,3.10500045]
[1753380461143,0.5429039,119370.0,119360.0,2.57993932]
[1753380461346,0.89812943,119370.0,119360.0,1.98476932]
[1753380461739,1.06568143,119370.0,119360.0,1.85496932]
[1753380462038,1.31568143,119370.0,119360.0,1.25496]
[1753380462234,1.31568143,119370.0,119360.0,1.84704]
[1753380462437,1.31568143,119370.0,119360.0,2.20784]
[1753380462641,1.31568143,119370.0,119360.0,2.3753179]
[1753380463247,1.06568143,119370.0,119360.0,2.3753179]
[1753380463546,1.06568143,119370.0,119360.0,2.38370501]
[1753380463743,1.06568143,119370.0,119360.0,1.84704]
[1753380464657,1.06568143,119370.0,119360.0,2.0145179]
[1753380465353,1.06568143,119370.0,119360.0,2.3753179]
[1753380465956,1.06568143,119370.0,119360.0,2.0229959]
[1753380466353,1.06568143,119370.0,119360.0,2.3837959]
[1753380466560,1.06568143,119370.0,119360.0,2.3753179]
[1753380467264,1.06568143,119370.0,119360.0,2.38386557]
[1753380468266,1.06568143,119370.0,119360.0,2.21638767]
[1753380468566,0.7104559,119370.0,119360.0,2.21638767]
[1753380468761,1.06568143,119370.0,119360.0,2.21638767]
[1753380470466,1.06568143,119370.0,119360.0,2.21542767]
[1753380470669,1.06568143,119370.0,119360.0,1.62430767]
[1753380470867,1.06568143,119370.0,119360.0,2.21518767]
[1753380471166,1.06568143,119370.0,119360.0,1.62430767]
[1753380471361,1.06568143,119370.0,119360.0,1.61576]
[1753380471560,1.06568143,119370.0,119360.0,2.2064]
[1753380472061,1.06568143,119370.0,119360.0,0.95144]
[1753380473659,0.89812943,119370.0,119360.0,0.95144]
[1753380475774,0.5429039,119370.0,119360.0,0.95465]
[1753380476163,0.5429039,119370.0,119360.0,1.1221284]
[1753380476363,0.5429039,119370.0,119360.0,0.95465]
[1753380476563,0.5429039,119370.0,119360.0,1.1221284]
[1753380476767,0.5429039,119370.0,119360.0,1.47935393]
[1753380476966,0.5429044,119370.0,119360.0,1.47935393]
[1753380477171,0.5429044,119370.0,119360.0,1.1241284]
[1753380478475,0.5429044,119370.0,119360.0,0.95665]
[1753380479968,0.3143444,119370.0,119360.0,1.1241284]
[1753380480378,0.3143444,119370.0,119360.0,1.31187553]
[1753380480577,0.5382444,119370.0,119360.0,1.31187553]
[1753380481069,0.5382444,119370.0,119360.0,0.95665]
[1753380481877,0.5382444,119370.0,119360.0,1.47935393]
[1753380482080,0.5382444,119370.0,119360.0,1.1241284]
[1753380482379,0.5382444,119370.0,119360.0,1.47935393]
[1753380482572,0.5382444,119370.0,119360.0,1.31187553]
[1753380483277,0.5382444,119370.0,119360.0,0.95665]
[1753380483478,0.5382444,119370.0,119360.0,1.31187553]
[1753380483669,0.89346993,119370.0,119360.0,0.36401]
[1753380483875,0.89346993,119370.0,119360.0,0.95365]
[1753380484571,1.06102193,119370.0,119360.0,0.95036]
[1753380486275,0.89346993,119370.0,119360.0,0.95036]
[1753380486474,0.89346993,119370.0,119360.0,0.95357]
[1753380490779,0.5382444,119370.0,119360.0,0.95357]
[1753380490979,0.89346993,119370.0,119360.0,0.95357]
[1753380495681,0.91344925,119370.0,119360.0,0.95357]
[1753380496481,0.55822372,119370.0,119360.0,1.30879553]
[1753380496674,0.55822272,119370.0,119360.0,0.95557]
[1753380496874,0.5382444,119370.0,119360.0,0.95557]
[1753380498284,0.89346993,119370.0,119360.0,0.95557]
[1753380498779,0.5382444,119370.0,119360.0,0.95557]
[1753380501588,0.5382444,119370.0,119360.0,0.95901]
[1753380505280,0.14688,119370.0,119360.0,1.126482]
[1753380505478,0.14688,119370.0,119360.0,1.48170753]
[1753380505880,0.10004,119370.0,119360.0,1.83693306]
[1753380506085,0.09804,119370.0,119360.0,1.83693306]
[1753380506286,0.09804,119370.0,119360.0,1.9133046]
[1753380506490,0.09804,119370.0,119360.0,0.88870753]
[1753380506687,0.09804,119370.0,119360.0,0.533482]
[1753380506991,0.09804,119370.0,119360.0,1.48330753]
[1753380507191,0.09804,119370.0,119360.0,1.48530753]
[1753380507393,0.09804,119370.0,119360.0,1.130082]
[1753380507686,0.71588553,119370.0,119360.0,0.96325]
[1753380507880,0.71588553,119370.0,119360.0,0.36801]
[1753380508084,0.88334343,119370.0,119360.0,2.21889]
[1753380508487,0.5281179,119370.0,119360.0,2.21889]
[1753380508887,0.36066,119370.0,119360.0,2.21889]
[1753380509087,0.36066,119370.0,119360.0,2.74158743]
[1753380509388,0.30959,119370.0,119360.0,2.74158743]
[1753380509894,0.30959,119370.0,119360.0,2.21889]
[1753380510187,0.4770479,119370.0,119360.0,2.21889]
[1753380510395,0.88334343,119370.0,119360.0,2.21933]
[1753380510587,0.88334343,119370.0,119360.0,2.21733]
[1753380510889,0.5281179,119370.0,119360.0,2.22962286]
[1753380512793,0.88334343,119370.0,119360.0,1.63326286]
[1753380512994,0.88334343,119370.0,119360.0,2.22637174]
[1753380513490,0.88334343,119370.0,119360.0,2.21408]
[1753380514193,0.88334343,119370.0,119360.0,1.61776]
[1753380514499,0.88334343,119370.0,119360.0,2.2138]
[1753380519197,0.88334343,119370.0,119360.0,2.3812721]
[1753380519394,0.88334343,119370.0,119360.0,2.2138]
[1753380519596,0.88334343,119370.0,119360.0,2.27364183]
[1753380520796,0.88334343,119370.0,119360.0,2.45341401]
[1753380520999,0.88334343,119370.0,119360.0,2.39357218]
[1753380521298,0.88334343,119370.0,119360.0,2.22610008]
[1753380522296,0.5281179,119370.0,119360.0,0.97114008]
[1753380522995,0.88334343,119370.0,119360.0,0.97114008]
[1753380523400,0.88334343,119370.0,119360.0,0.9711422]
[1753380523902,0.88334343,119370.0,119360.0,0.3751022]
[1753380524101,0.88334343,119370.0,119360.0,0.9697422]
[1753380527493,0.71588553,119370.0,119360.0,1.1372137]
[1753380527700,0.1437,119370.0,119360.0,1.1372137]
[1753380527898,0.1437,119370.0,119360.0,1.49243923]
[1753380528801,0.3111975,119370.0,119360.0,1.49243923]
[1753380529505,0.14374,119370.0,119360.0,1.49243923]
[1753380530403,0.14374,119370.0,119360.0,1.55228106]
[1753380530804,0.09808,119370.0,119360.0,1.55228106]
[1753380533107,0.09808,119370.0,119360.0,1.49243923]
[1753380534914,0.09808,119370.0,119360.0,1.84766476]
[1753380535110,0.09808,119370.0,119360.0,2.01521675]
[1753380536113,0.09808,119370.0,119360.0,1.65999122]
[1753380536614,0.09808,119370.0,119360.0,1.84766476]
[1753380536915,0.09808,119370.0,119360.0,1.49243923]
[1753380537916,0.09808,119370.0,119360.0,1.49247923]
[1753380539316,0.09808,119370.0,119360.0,1.84770476]
[1753380539714,0.09808,119370.0,119360.0,1.49247923]
[1753380539908,0.09808,119370.0,119360.0,1.84770476]
[1753380540113,0.09808,119370.0,119360.0,2.01525675]
[1753380542420,0.09808,119370.0,119360.0,2.01515938]
[1753380542714,0.09808,119370.0,119360.0,1.30470832]
[1753380542923,0.09808,119370.0,119360.0,1.06525385]
[1753380543119,0.14349,119370.0,119360.0,1.13739633]
[1753380543308,0.14349,119370.0,119360.0,0.54247633]
[1753380543510,0.29955,119370.0,119360.0,1.49278186]
[1753380543719,0.29955,119370.0,119360.0,1.13755633]
[1753380544020,0.29955,119370.0,119360.0,1.49278186]
[1753380545815,0.29955,119370.0,119360.0,2.74738186]
[1753380546016,0.24988,119370.0,119360.0,2.74738186]
[1753380546217,0.14349,119370.0,119360.0,2.74738186]
[1753380547626,0.14349,119370.0,119360.0,2.7473867]
[1753380549430,0.14349,119370.0,119360.0,2.74738878]
[1753380550432,0.14349,119370.0,119360.0,2.39216325]
[1753380550632,0.14349,119370.0,119360.0,2.74738975]
[1753380551534,0.14349,119370.0,119360.0,2.8222507]
[1753380552233,0.14349,119370.0,119360.0,2.81003798]
[1753380556636,0.14349,119370.0,119360.0,2.73517703]
[1753380562836,0.14349,119370.0,119360.0,2.81011394]
[1753380565642,0.14349,119370.0,119360.0,2.45488841]
[1753380565846,0.14349,119370.0,119360.0,2.81011394]
[1753380566949,0.14349,119370.0,119360.0,2.73517703]
[1753380568239,0.14349,119370.0,119360.0,2.3799515]
[1753380568441,0.14349,119370.0,119360.0,2.73517703]
[1753380568637,0.14349,119370.0,119360.0,2.81011394]
[1753380568842,0.14349,119370.0,119360.0,2.73517703]
[1753380569251,0.14349,119370.0,119360.0,2.98535535]
[1753380570850,0.14349,119370.0,119360.0,2.91041844]
[1753380571149,0.14349,119370.0,119360.0,2.3799515]
[1753380571352,0.14349,119370.0,119360.0,2.91041844]
[1753380571745,0.14349,119370.0,119360.0,2.98535535]
[1753380573746,0.14349,119370.0,119360.0,2.91041844]
[1753380573940,0.14349,119370.0,119360.0,2.98535535]
[1753380575052,0.14349,119370.0,119360.0,2.91041844]
[1753380575753,0.14349,119370.0,119360.0,2.3799515]
[1753380576054,0.14349,119370.0,119360.0,2.91041844]
[1753380583560,0.14349,119370.0,119360.0,3.01550675]
[1753380584767,0.14349,119370.0,119360.0,2.48503981]
[1753380584961,0.14349,119370.0,119360.0,3.01550675]
[1753380585667,0.14349,119370.0,119360.0,2.48503981]
[1753380585867,0.14349,119370.0,119360.0,3.01550675]
[1753380589572,0.14349,119370.0,119360.0,3.01450675]
[1753380589773,0.14349,119370.0,119360.0,3.01650675]
[1753380590075,0.14349,119370.0,119360.0,3.01850675]
[1753380591876,0.14349,119370.0,119360.0,1.16882675]
[1753380592075,0.14349,119370.0,119360.0,3.01334675]
[1753380594079,0.14349,119370.0,119360.0,2.90825844]
[1753380598676,0.20414,119370.0,119360.0,2.90825844]
[1753380598876,0.32711,119370.0,119360.0,2.90825844]
[1753380599178,0.32711,119370.0,119360.0,3.01334675]
[1753380599680,0.35934,119370.0,119360.0,3.01334675]
[1753380600181,0.35934,119370.0,119360.0,2.48287981]
[1753380600381,0.35934,119370.0,119360.0,3.01334675]
[1753380600877,0.14349,119370.0,119360.0,2.90825844]
[1753380601282,0.14349,119370.0,119360.0,3.01334675]
[1753380601773,0.14349,119370.0,119360.0,2.90825844]
[1753380602172,0.14349,119370.0,119360.0,3.01334675]
[1753380602877,0.14349,119370.0,119360.0,2.90825844]
[1753380603284,0.14349,119370.0,119360.0,2.3777915]
[1753380603481,0.14349,119370.0,119360.0,2.90825844]
[1753380603877,0.14349,119370.0,119360.0,2.3777915]
[1753380604086,0.14349,119370.0,119360.0,2.90825844]
[1753380604482,0.09808,119370.0,119360.0,2.90825844]
[1753380604783,0.01167606,119400.0,119390.0,0.31008572]
[1753380604973,0.01167606,119400.0,119390.0,1.62218027]
[1753380605175,0.01167606,119400.0,119390.0,2.38703065]
[1753380605377,0.01167606,119400.0,119390.0,2.44699858]
[1753380605580,0.01167606,119400.0,119390.0,2.38703065]
[1753380605784,0.01167606,119400.0,119390.0,1.79731065]
[1753380606085,0.01167606,119400.0,119390.0,2.65246412]
[1753380606272,0.01167606,119400.0,119390.0,2.72949863]
[1753380606477,0.01167606,119400.0,119390.0,2.65446412]
[1753380606674,0.01167606,119400.0,119390.0,2.46626516]
[1753380607384,0.01167606,119400.0,119390.0,1.4566762]
[1753380607680,0.01167606,119400.0,119390.0,2.10670095]
[1753380607681,0.27602606,119400.0,119390.0,2.10670095]
[1753380607881,0.27602606,119400.0,119390.0,1.98085823]
[1753380608080,0.06017606,119400.0,119390.0,1.98085823]
[1753380608481,0.01167606,119400.0,119390.0,1.98085823]
[1753380609481,0.15554,119450.0,119440.0,0.2861894]
[1753380609682,0.31258507,119450.0,119440.0,1.59097389]
[1753380609884,0.43873087,119450.0,119440.0,1.59097389]
[1753380610080,0.43873087,119450.0,119440.0,1.2376294]
[1753380610285,0.28319087,119450.0,119440.0,1.5993388]
[1753380610685,0.2636658,119450.0,119440.0,1.24607431]
[1753380610885,0.28317815,119450.0,119440.0,1.24607431]
[1753380611188,0.36564739,119450.0,119440.0,1.24587431]
[1753380611387,0.3926558,119450.0,119440.0,1.24587431]
[1753380611588,0.1261458,119450.0,119440.0,1.5992188]
[1753380611783,0.1726658,119450.0,119440.0,1.5992188]
[1753380611986,0.4657258,119450.0,119440.0,1.24587431]
[1753380612183,0.81907029,119450.0,119440.0,0.12719491]
[1753380612388,1.01337035,119450.0,119440.0,0.64596491]
[1753380612586,1.01337035,119450.0,119440.0,0.79761421]
[1753380612587,0.83856954,119450.0,119440.0,0.79761421]
[1753380612785,0.48522505,119450.0,119440.0,0.20721421]
[1753380612980,0.48522505,119450.0,119440.0,1.15841421]
[1753380613185,0.83856954,119450.0,119440.0,0.83845421]
[1753380613391,0.48522505,119450.0,119440.0,0.83845421]
[1753380613584,0.83856954,119450.0,119440.0,0.88495421]
[1753380613987,0.1726658,119450.0,119440.0,1.5990987]
[1753380614182,0.81907029,119450.0,119440.0,1.03189491]
[1753380614492,0.83856097,119450.0,119440.0,1.19925421]
[1753380614693,0.81907029,119450.0,119440.0,1.19925421]
[1753380614887,0.4657258,119450.0,119440.0,1.24575421]
[1753380618794,0.4657258,119450.0,119440.0,0.88495421]
[1753380618990,1.17987029,119450.0,119440.0,0.76660421]
[1753380619195,1.34721559,119450.0,119440.0,0.76660421]
[1753380620096,1.34721559,119450.0,119440.0,0.76648421]
[1753380620389,1.76465559,119450.0,119440.0,0.17572421]
[1753380620597,1.76465559,119450.0,119440.0,0.59904491]
[1753380620795,1.76465559,119450.0,119440.0,0.76640421]
[1753380620994,1.4113111,119450.0,119440.0,0.76640421]
[1753380621195,1.51465559,119450.0,119440.0,0.76640421]
[1753380621994,1.15385559,119450.0,119440.0,0.76640421]
[1753380623196,1.51465559,119450.0,119440.0,0.76640421]
[1753380623796,1.34731029,119450.0,119440.0,0.76640421]
[1753380624499,1.51465509,119450.0,119440.0,0.76640421]
[1753380624797,1.34731029,119450.0,119440.0,0.76640421]
[1753380625498,1.34731029,119450.0,119440.0,0.77910797]
[1753380625698,1.34731029,119450.0,119440.0,0.77910798]
[1753380626000,1.51465499,119450.0,119440.0,0.77910798]
[1753380626193,1.1613105,119450.0,119440.0,0.77910798]
[1753380626388,1.51465499,119450.0,119440.0,0.77910798]
[1753380627099,1.17987029,119450.0,119440.0,0.89793798]
[1753380627298,0.81907029,119450.0,119440.0,0.89793798]
[1753380627500,0.4657658,119450.0,119440.0,0.89793798]
[1753380628195,0.98645519,119450.0,119440.0,0.89793798]
[1753380630996,0.6331107,119450.0,119440.0,0.89793798]
[1753380631198,0.98645519,119450.0,119440.0,0.89793798]
[1753380631596,0.98645519,119450.0,119440.0,0.8983142]
[1753380632911,0.98645519,119450.0,119440.0,0.7309549]
[1753380633212,0.98645519,119450.0,119440.0,0.8983138]
[1753380634298,0.98645519,119450.0,119440.0,0.8993138]
[1753380634804,0.5750807,119450.0,119440.0,1.2601138]
[1753380635009,0.4540407,119450.0,119440.0,1.2611138]
[1753380635207,0.3715707,119450.0,119440.0,1.2611138]
[1753380636109,0.4540407,119450.0,119440.0,1.2611138]
[1753380636311,0.5600407,119450.0,119440.0,1.2611138]
[1753380636609,0.6331107,119450.0,119440.0,1.2611138]
[1753380638216,0.98645519,119450.0,119440.0,1.2611138]
[1753380638916,0.6331107,119450.0,119440.0,1.2611138]
[1753380639111,0.98645519,119450.0,119440.0,0.6445749]
[1753380639314,0.98645519,119450.0,119440.0,0.6130849]
[1753380640412,1.34725519,119450.0,119440.0,0.6130849]
[1753380640614,0.98645519,119450.0,119440.0,0.6130849]
[1753380640813,1.34725519,119450.0,119440.0,0.6130849]
[1753380641117,1.34725519,119450.0,119440.0,0.7804438]
[1753380641714,1.34725519,119450.0,119440.0,0.8276238]
[1753380642111,0.98645519,119450.0,119440.0,0.8276238]
[1753380643610,0.98645519,119450.0,119440.0,0.82673142]
[1753380644417,0.98645519,119450.0,119440.0,0.85186142]
[1753380647113,0.6331107,119450.0,119440.0,0.85186142]
[1753380647522,0.98645519,119450.0,119440.0,0.85186142]
[1753380648728,0.98645519,119450.0,119440.0,0.83967381]
[1753380648917,0.98645519,119450.0,119440.0,0.89839418]
[1753380649114,0.6331107,119450.0,119440.0,0.89839418]
[1753380649316,0.98645519,119450.0,119440.0,0.89839418]
[1753380650423,0.98645519,119450.0,119440.0,0.95805414]
[1753380650723,0.98645519,119450.0,119440.0,0.91153414]
[1753380651426,0.98645519,119450.0,119440.0,0.85187418]
[1753380651613,0.6331107,119450.0,119440.0,0.85187418]
[1753380651818,0.98645519,119450.0,119440.0,0.85187418]
[1753380652125,0.6331107,119450.0,119440.0,0.85187418]
[1753380652324,0.98645519,119450.0,119440.0,0.91153414]
[1753380655435,0.98645519,119450.0,119440.0,0.89933377]
[1753380655619,0.6331107,119450.0,119440.0,0.89933377]
[1753380655825,0.98645519,119450.0,119440.0,0.94585377]
[1753380657329,0.6331107,119450.0,119440.0,0.94585377]
[1753380657518,0.98645519,119450.0,119440.0,0.94585377]
[1753380658528,0.98645519,119450.0,119440.0,0.89933377]
[1753380659128,0.98645509,119450.0,119440.0,1.30665377]
[1753380659725,0.1727058,119450.0,119440.0,1.65999826]
[1753380660229,0.3400507,119450.0,119440.0,1.65999826]
[1753380660424,0.4305758,119450.0,119440.0,1.30665377]
[1753380660624,0.5979207,119450.0,119440.0,1.30665377]
[1753380661831,0.5979207,119450.0,119440.0,1.65999826]
[1753380662135,0.6280407,119450.0,119440.0,1.30665377]
[1753380663734,0.4606958,119450.0,119440.0,1.65999826]
[1753380664230,0.4606958,119450.0,119440.0,1.6003383]
[1753380664530,0.5588006,119450.0,119440.0,1.6003383]
[1753380664731,0.2758758,119450.0,119440.0,1.6003383]
[1753380665126,0.1261858,119450.0,119440.0,1.6003383]
[1753380665832,0.1749958,119450.0,119440.0,1.67491325]
[1753380666532,0.1749958,119450.0,119440.0,1.73488649]
[1753380666733,0.1749958,119450.0,119440.0,1.65947154]
[1753380667236,0.1261858,119450.0,119440.0,1.65947154]
[1753380668534,0.1261858,119450.0,119440.0,1.30612705]
[1753380668734,0.1261858,119450.0,119440.0,1.65947154]
[1753380668936,0.1261858,119450.0,119440.0,1.5994983]
[1753380669128,0.1261858,119450.0,119440.0,1.5994583]
[1753380669323,0.1749958,119450.0,119440.0,1.5994583]
[1753380669529,0.1749958,119450.0,119440.0,1.67403325]
[1753380669734,0.1749958,119450.0,119440.0,1.67503325]
[1753380669925,0.1749958,119450.0,119440.0,1.67403325]
[1753380670131,0.1261858,119450.0,119440.0,1.67603325]
[1753380670728,0.1261858,119450.0,119440.0,1.6014583]
[1753380670926,0.1261858,119450.0,119440.0,1.62025845]
[1753380672135,0.1261858,119450.0,119440.0,1.6948334]
[1753380672436,0.1261858,119450.0,119440.0,1.62025845]
[1753380672633,0.1261858,119450.0,119440.0,1.6014583]
[1753380673739,0.1261858,119450.0,119440.0,1.66137742]
[1753380674441,0.1261858,119450.0,119440.0,1.66129742]
[1753380674627,0.1261858,119450.0,119440.0,1.07261742]
[1753380675031,0.1261858,119450.0,119440.0,1.66129742]
[1753380675231,0.1261858,119450.0,119440.0,1.07261742]
[1753380675434,0.1261858,119450.0,119440.0,1.66129742]
[1753380675627,0.1760058,119450.0,119440.0,0.71927293]
[1753380675833,0.52935029,119450.0,119440.0,1.30795293]
[1753380676033,0.82155029,119450.0,119440.0,1.30795293]
[1753380676235,0.4682058,119450.0,119440.0,1.07261742]
[1753380676437,0.4682058,119450.0,119440.0,1.66129742]
[1753380676939,0.4682058,119450.0,119440.0,1.6013783]
[1753380678138,0.3957058,119450.0,119440.0,1.6013783]
[1753380678341,0.3957058,119450.0,119440.0,1.24803381]
[1753380678638,0.3957058,119450.0,119440.0,1.6013783]
[1753380679942,0.3957058,119450.0,119440.0,1.67595325]
[1753380682043,0.3957058,119450.0,119440.0,1.6013783]
[1753380682943,0.3957058,119450.0,119440.0,1.6012983]
[1753380683340,0.3957058,119450.0,119440.0,1.24795381]
[1753380683540,0.4682058,119450.0,119440.0,1.0126983]
[1753380683740,0.4682058,119450.0,119440.0,1.6012983]
[1753380684135,0.4682058,119450.0,119440.0,1.24795381]
[1753380684341,0.4682058,119450.0,119440.0,1.6012983]
[1753380684844,0.4682058,119450.0,119440.0,1.6134915]
[1753380685147,0.73309176,119450.0,119440.0,1.77772573]
[1753380685442,0.4682058,119450.0,119440.0,1.77772573]
[1753380685647,0.73309176,119450.0,119440.0,1.83765718]
[1753380687247,0.4682058,119450.0,119440.0,1.83765718]
[1753380688546,0.4682058,119450.0,119440.0,1.30788526]
[1753380688942,0.4682058,119450.0,119440.0,1.83765718]
[1753380689151,0.73309176,119450.0,119440.0,1.83754391]
[1753380689537,0.73309176,119450.0,119440.0,1.77761246]
[1753380690944,0.4682058,119450.0,119440.0,1.77761246]
[1753380691447,0.3957058,119450.0,119440.0,1.77761246]
[1753380693852,0.3957058,119450.0,119440.0,1.41681246]
[1753380694050,0.3957058,119450.0,119440.0,1.77761246]
[1753380695247,0.3957058,119450.0,119440.0,1.24784054]
[1753380695442,0.3957058,119450.0,119440.0,1.77761246]
[1753380696353,0.3957058,119450.0,119440.0,1.85218741]